fUST/lending_fUST_20250911
["ID","MTS","AMOUNT","RATE_DAILY","PERIOD"]
[384788053,1757542252702,-480.0,0.00014027,2]
[384788055,1757542252711,-480.0,0.00014027,2]
[384788057,1757542252720,-480.0,0.00014027,2]
[384788059,1757542252729,-480.0,0.00014027,2]
[384788061,1757542252738,-480.0,0.00014027,2]
[384788063,1757542252748,-480.0,0.00014027,2]
[384788065,1757542252757,-480.0,0.00014027,2]
[384788067,1757542252766,-480.0,0.00014027,2]
[384788069,1757542252776,-480.0,0.00014027,2]
[384788071,1757542252786,-480.0,0.00014027,2]
[384788073,1757542252796,-481.94520403,0.00014027,2]
[384788075,1757542252806,-226.555976,0.00014027,2]
[384788077,1757542252816,-226.555976,0.00014027,2]
[384788079,1757542252826,-226.555976,0.00014027,2]
[384788081,1757542252836,-226.555967,0.00014027,2]
[384788083,1757542252846,-151.0,0.00014027,2]
[384788085,1757542252856,-151.0,0.00014027,2]
[384788087,1757542252866,-151.0,0.00014027,2]
[384788089,1757542252879,-151.0,0.00014027,2]
[384788091,1757542252890,-223.35565929,0.00014027,2]
[384788094,1757542252905,-60.85384071,0.00014027,2]
[384788096,1757542252915,-480.0,0.00014027,2]
[384788098,1757542252928,-480.0,0.00014027,2]
[384788100,1757542252938,-166.639341,0.00014027,2]
[384788102,1757542252948,-151.0,0.00014027,2]
[384788104,1757542252958,-166.639341,0.00014027,2]
[384788106,1757542252968,-166.639341,0.00014027,2]
[384788108,1757542252979,-166.639348,0.00014027,2]
[384788110,1757542252989,-151.0,0.00014027,2]
[384788111,1757542252998,-172.310142,0.00014027,2]
[384788113,1757542253008,-151.0,0.00014027,2]
[384788115,1757542253017,-172.310142,0.00014027,2]
[384788117,1757542253027,-172.310142,0.00014027,2]
[384788119,1757542253036,-172.310134,0.00014027,2]
[384788121,1757542253046,-480.0,0.00014027,2]
[384788123,1757542253055,-480.0,0.00014027,2]
[384788125,1757542253064,-480.0,0.00014027,2]
[384788127,1757542253073,-480.0,0.00014027,2]
[384788129,1757542253083,-200.0,0.00014027,2]
[384788131,1757542253092,-212.59826704,0.00014027,2]
[384788133,1757542253102,-480.0,0.00014027,2]
[384788135,1757542253111,-480.0,0.00014027,2]
[384788137,1757542253121,-480.0,0.00014027,2]
[384788139,1757542253130,-480.86930627,0.00014028,2]
[384788141,1757542253139,-480.0,0.00014028,2]
[384788144,1757542253150,-151.0,0.00014028,2]
[384788146,1757542253165,-480.0,0.00014028,2]
[384788148,1757542253180,-151.0,0.00014028,2]
[384788151,1757542253191,-151.0,0.00014028,2]
[384788153,1757542253206,-151.0,0.00014028,2]
[384788156,1757542253219,-151.0,0.00014028,2]
[384788158,1757542253233,-151.0,0.00014028,2]
[384788161,1757542253246,-151.0,0.00014028,2]
[384788163,1757542253261,-153.086832,0.00014028,2]
[384788165,1757542253273,-158.268724,0.00014028,2]
[384788168,1757542253285,-151.0,0.00014028,2]
[384788170,1757542253297,-151.0,0.00014028,2]
[384788173,1757542253311,-151.0,0.00014028,2]
[384788175,1757542253324,-167.333707,0.00014028,2]
[384788177,1757542253335,-151.0,0.00014028,2]
[384788180,1757542253351,-151.0,0.00014028,2]
[384788182,1757542253364,-590.687395,0.00014028,2]
[384788184,1757542253377,-151.0,0.00014028,2]
[384788187,1757542253391,-257.999143,0.00014028,2]
[384788189,1757542253405,-590.687395,0.00014028,2]
[384788192,1757542253420,-590.687395,0.00014028,2]
[384788194,1757542253436,-590.687395,0.00014028,2]
[384788196,1757542253447,-151.0,0.00014028,2]
[384788198,1757542253457,-188.12532594,0.00014028,2]
[384789718,1757542314169,-220.78699958,0.00013553,2]
[384789719,1757542477218,300.0,0.00013415,2]
[384789720,1757542509910,844.25170903,0.0001346,2]
[384789721,1757542982905,-206.40566913,0.00013544,2]
[384789722,1757543079601,825.11677653,0.00013451,2]
[384789738,1757543192871,545.05,0.00027397,120]
[384790312,1757543438261,-1200.0,0.00013551,2]
[384790314,1757543438271,-200.67715541,0.00013552,2]
[384790316,1757543438280,-500.0,0.00013552,2]
[384790318,1757543438290,-500.0,0.00013552,2]
[384790319,1757543438299,-500.0,0.00013552,2]
[384790321,1757543438308,-500.0,0.00013552,2]
[384790323,1757543438317,-500.0,0.00013552,2]
[384790325,1757543438327,-500.0,0.00013552,2]
[384790327,1757543438336,-402.07234269,0.00013552,2]
[384790328,1757543438345,-500.0,0.00013552,2]
[384790330,1757543438354,-48439.62877447,0.00013553,2]
[384790335,1757543438400,-1516.39,0.00013553,2]
[384790337,1757543438412,-962.8999974,0.00013553,2]
[384790339,1757543438423,-6196.86278116,0.00013553,2]
[384790495,1757543440392,-906.0,0.00013553,2]
[384790504,1757543440469,-864.77767131,0.00013553,2]
[384790506,1757543440481,-746.03,0.00013553,2]
[384790623,1757543446560,-375.17554762,0.00013553,2]
[384791588,1757543576256,4143.07855373,0.00013453,2]
[384791589,1757543576281,10000.01,0.00013453,2]
[384791590,1757543576307,7464.66438943,0.00013453,2]
[384791591,1757543590236,721.97717949,0.00013454,2]
[384791592,1757543612712,721.97717949,0.00013454,2]
[384791593,1757543635863,636.05564102,0.00013454,2]
[384791594,1757543639738,-445.37400761,0.0001359,2]
[384791597,1757544289570,322.73468964,0.00013461,2]
[384791598,1757544304752,-204.49300831,0.00013573,2]
[384791614,1757544632647,-409.51317813,0.00013573,2]
[384791615,1757544632658,-231.23062437,0.00013573,2]
[384791616,1757544632668,-230.98437563,0.00013597,2]
[384791617,1757544632679,-69.01562437,0.00013597,2]
[384791618,1757544632688,-895.51879339,0.00013597,2]
[384791648,1757544638554,-304.48120661,0.00013597,2]
[384791650,1757544638564,-300.0,0.00013597,2]
[384791652,1757544638574,-1255.01020818,0.00013598,2]
[384791655,1757544638586,-1375.8092375,0.00013598,2]
[384791657,1757544638596,-482.04225309,0.00013598,2]
[384791659,1757544638607,-658.2987274,0.00013598,2]
[384791665,1757544638653,-3017.09036537,0.00013598,2]
[384792013,1757544646682,-6263.6629498,0.00013598,2]
[384792015,1757544646692,-4774.44020029,0.00013598,2]
[384792796,1757544831051,132.60092093,0.00013448,2]
[384792797,1757544831075,4391.1316436,0.00013448,2]
[384792801,1757544910437,-203.5182417,0.00013583,2]
[384792802,1757544910470,-347.52080396,0.00013583,2]
[384792803,1757544910500,-587.44008061,0.00013583,2]
[384792804,1757544910638,-300.0,0.00013583,2]
[384792805,1757544911274,-2731.92010386,0.00013584,2]
[384792806,1757544911337,-10000.01,0.00013584,2]
[384792807,1757544911364,-10000.01,0.00013584,2]
[384792808,1757544911494,-10000.01,0.00013584,2]
[384792809,1757544911627,-10000.01,0.00013584,2]
[384792810,1757544911791,-10000.01,0.00013584,2]
[384792811,1757544911924,-10000.01,0.00013584,2]
[384792812,1757544920455,-10000.01,0.00013584,2]
[384792813,1757544920575,-10000.01,0.00013584,2]
[384792814,1757544920702,-10000.01,0.00013584,2]
[384792815,1757544920809,-10000.01,0.00013584,2]
[384792816,1757544920951,-10000.01,0.00013584,2]
[384792817,1757544921082,-2268.84415524,0.00013584,2]
[384792818,1757544921254,-5462.32168952,0.00013598,2]
[384792819,1757544921296,-3656.46443006,0.00013598,2]
[384792820,1757544921328,-2687.08113988,0.00013598,2]
[384792821,1757544921370,-3141.85980724,0.00013598,2]
[384792822,1757544921409,-1611.21729405,0.00013598,2]
[384792823,1757544921490,-493.85579742,0.00013598,2]
[384792824,1757544921532,-506.14420258,0.00013598,2]
[384792825,1757544921580,-8987.72159484,0.00013607,2]
[384792826,1757544921650,-10000.01,0.00013607,2]
[384792827,1757544940495,-10000.01,0.00013607,2]
[384792828,1757544940636,-1945.75261184,0.00013607,2]
[384792829,1757544940659,-6108.50477632,0.00013607,2]
[384792830,1757544940778,-500.0,0.00013673,2]
[384792831,1757544940808,-430.59196184,0.00013673,2]
[384792832,1757544940838,-248.82145066,0.00013673,2]
[384792833,1757544940867,-500.0,0.00013673,2]
[384792834,1757544940895,-501.66385741,0.00013673,2]
[384792835,1757544940926,-500.0,0.00013673,2]
[384792836,1757544940954,-500.0,0.00013673,2]
[384792837,1757544940982,-500.0,0.00013673,2]
[384792838,1757544941011,-500.0,0.00013673,2]
[384792839,1757544941038,-500.0,0.00013673,2]
[384792840,1757544941067,-137.85546018,0.00013673,2]
[384792841,1757544941287,-362.14453982,0.00013673,2]
[384792842,1757544941316,-356.53122652,0.00013673,2]
[384792843,1757544941345,-500.0,0.00013673,2]
[384792844,1757544941375,-500.0,0.00013673,2]
[384792845,1757544941404,-151.0,0.00013673,2]
[384792846,1757544941435,-151.0,0.00013673,2]
[384792847,1757544941463,-151.0,0.00013673,2]
[384792848,1757544941494,-418.645837,0.00013673,2]
[384792849,1757544941523,-261.655352,0.00013673,2]
[384792850,1757544941553,-418.645837,0.00013673,2]
[384792851,1757544941584,-418.645837,0.00013673,2]
[384792852,1757544941614,-418.645837,0.00013673,2]
[384792853,1757544941644,-151.0,0.00013673,2]
[384792854,1757544941674,-151.0,0.00013673,2]
[384792855,1757544941702,-151.0,0.00013673,2]
[384792856,1757544941733,-151.207867,0.00013673,2]
[384792857,1757544941763,-151.0,0.00013673,2]
[384792858,1757544942018,-325.084792,0.00013673,2]
[384792859,1757544942047,-151.0,0.00013673,2]
[384792860,1757544942077,-325.084792,0.00013673,2]
[384792861,1757544942105,-151.0,0.00013673,2]
[384792862,1757544942134,-325.084792,0.00013673,2]
[384792863,1757544942164,-325.084792,0.00013673,2]
[384792864,1757544942191,-151.0,0.00013673,2]
[384792865,1757544942218,-151.0,0.00013673,2]
[384792866,1757544942247,-151.0,0.00013673,2]
[384792867,1757544942502,-500.0,0.00013583,2]
[384792868,1757544942531,-257.2112803,0.00013583,2]
[384792869,1757544942814,-189.7854373,0.00013583,2]
[384792870,1757544943141,-151.0,0.00013673,2]
[384792871,1757544943151,-5534.00879202,0.0001369,2]
[384792872,1757544943165,-10000.01,0.0001369,2]
[384792873,1757544943194,-500.0,0.0001369,2]
[384792874,1757544943217,-257.2112803,0.0001369,2]
[384792875,1757544943231,-2312.65362768,0.0001369,2]
[384792876,1757544943240,-162.380719,0.0001369,2]
[384792877,1757544943250,-500.0,0.0001369,2]
[384792878,1757544943259,-151.0,0.0001369,2]
[384792879,1757544943268,-151.0,0.0001369,2]
[384792880,1757544943277,-250.0,0.0001369,2]
[384792881,1757544943286,-500.0,0.0001369,2]
[384792882,1757544943296,-151.0,0.0001369,2]
[384792883,1757544943305,-151.0,0.0001369,2]
[384792884,1757544943314,-250.0,0.0001369,2]
[384792885,1757544943324,-500.0,0.0001369,2]
[384792886,1757544943333,-151.0,0.0001369,2]
[384792887,1757544943342,-151.0,0.0001369,2]
[384792888,1757544943351,-151.0,0.0001369,2]
[384792889,1757544943360,-250.0,0.0001369,2]
[384792890,1757544943369,-151.0,0.0001369,2]
[384792891,1757544943379,-151.0,0.0001369,2]
[384792892,1757544943389,-500.0,0.0001369,2]
[384792893,1757544943504,-151.0,0.0001369,2]
[384792894,1757544943513,-151.0,0.0001369,2]
[384792895,1757544943524,-500.0,0.0001369,2]
[384792896,1757544943533,-151.0,0.0001369,2]
[384792897,1757544943543,-250.0,0.0001369,2]
[384792898,1757544943553,-151.0,0.0001369,2]
[384792899,1757544943562,-151.0,0.0001369,2]
[384792900,1757544943571,-396.55309272,0.0001369,2]
[384792901,1757544943591,-103.44690728,0.0001369,2]
[384792902,1757544943600,-151.0,0.0001369,2]
[384792903,1757544943609,-250.0,0.0001369,2]
[384792904,1757544943619,-173.0851973,0.0001369,2]
[384792905,1757544943628,-151.0,0.0001369,2]
[384792906,1757544943638,-2030.296672,0.0001369,2]
[384792907,1757544943647,-500.0,0.0001369,2]
[384792908,1757544943656,-151.0,0.0001369,2]
[384792909,1757544943665,-250.0,0.0001369,2]
[384792910,1757544943674,-151.0,0.0001369,2]
[384792911,1757544943683,-500.0,0.0001369,2]
[384792912,1757544943694,-151.0,0.0001369,2]
[384792913,1757544943708,-250.0,0.0001369,2]
[384792914,1757544943719,-151.0,0.0001369,2]
[384792915,1757544943727,-151.0,0.0001369,2]
[384792916,1757544943736,-250.0,0.0001369,2]
[384792917,1757544943746,-500.0,0.0001369,2]
[384792918,1757544943756,-151.0,0.0001369,2]
[384792919,1757544943766,-250.0,0.0001369,2]
[384792920,1757544943775,-500.0,0.0001369,2]
[384792921,1757544943785,-151.0,0.0001369,2]
[384792922,1757544943794,-250.0,0.0001369,2]
[384792923,1757544943803,-500.0,0.0001369,2]
[384792924,1757544943813,-250.0,0.0001369,2]
[384792925,1757544943822,-151.0,0.0001369,2]
[384792926,1757544943831,-250.0,0.0001369,2]
[384792927,1757544943840,-151.0,0.0001369,2]
[384792928,1757544943850,-500.0,0.0001369,2]
[384792929,1757544943859,-284.19352325,0.0001369,2]
[384792930,1757544943868,-151.0,0.0001369,2]
[384792931,1757544943878,-151.0,0.0001369,2]
[384792932,1757544943887,-445.98770017,0.0001369,2]
[384792933,1757544943913,-54.01229983,0.0001369,2]
[384792934,1757544943923,-135.77313747,0.0001369,2]
[384792935,1757544943944,-52.09734623,0.0001369,2]
[384792936,1757544943954,-151.0,0.0001369,2]
[384792937,1757544943965,-500.0,0.0001369,2]
[384792938,1757544943976,-500.0,0.0001369,2]
[384792939,1757544943987,-151.0,0.0001369,2]
[384792940,1757544943999,-500.0,0.0001369,2]
[384792941,1757544944010,-151.0,0.0001369,2]
[384792942,1757544944020,-500.0,0.0001369,2]
[384792943,1757544944029,-630.90766004,0.0001369,2]
[384792944,1757544944039,-1000.0,0.0001369,2]
[384792945,1757544944048,-1000.0,0.0001369,2]
[384792946,1757544944057,-724.96854197,0.0001369,2]
[384792947,1757544944068,-151.0,0.0001369,2]
[384792948,1757544944078,-526.329301,0.0001369,2]
[384792949,1757544944087,-151.0,0.0001369,2]
[384792950,1757544944096,-526.329301,0.0001369,2]
[384792951,1757544944106,-151.0,0.0001369,2]
[384792952,1757544944115,-151.0,0.0001369,2]
[384792953,1757544944125,-526.329301,0.0001369,2]
[384792954,1757544944134,-151.0,0.0001369,2]
[384792955,1757544944143,-151.0,0.0001369,2]
[384792956,1757544944152,-526.329301,0.0001369,2]
[384792957,1757544944161,-151.0,0.0001369,2]
[384792958,1757544944170,-151.0,0.0001369,2]
[384792959,1757544944179,-151.0,0.0001369,2]
[384792960,1757544944189,-151.0,0.0001369,2]
[384792961,1757544944198,-144.14837316,0.0001369,2]
[384792962,1757544944214,-6.85162684,0.0001369,2]
[384792963,1757544944223,-151.0,0.0001369,2]
[384792964,1757544944232,-151.0,0.0001369,2]
[384792965,1757544944241,-182.517084,0.0001369,2]
[384792966,1757544944249,-182.517084,0.0001369,2]
[384792967,1757544944259,-182.517084,0.0001369,2]
[384792968,1757544944268,-182.517084,0.0001369,2]
[384792969,1757544944277,-172.400562,0.0001369,2]
[384792970,1757544944286,-172.400562,0.0001369,2]
[384792971,1757544944295,-151.0,0.0001369,2]
[384792972,1757544944304,-172.400562,0.0001369,2]
[384792973,1757544944313,-151.0,0.0001369,2]
[384792974,1757544944322,-172.400562,0.0001369,2]
[384792975,1757544944331,-151.0,0.0001369,2]
[384792976,1757544944340,-204.982899,0.0001369,2]
[384792977,1757544944349,-500.0,0.0001369,2]
[384792978,1757544944359,-480.0,0.00013698,2]
[384792979,1757544944367,-535.52868387,0.00013698,2]
[384792980,1757544944377,-480.0,0.00013698,2]
[384792981,1757544944386,-151.0,0.00013698,2]
[384792982,1757544944395,-151.0,0.00013698,2]
[384792983,1757544944404,-480.0,0.00013698,2]
[384792984,1757544944413,-480.0,0.00013698,2]
[384792985,1757544944423,-151.0,0.00013698,2]
[384792986,1757544944432,-480.0,0.00013698,2]
[384792987,1757544944441,-481.17365304,0.00013698,2]
[384792988,1757544944450,-480.0,0.00013698,2]
[384792989,1757544944459,-151.0,0.00013698,2]
[384792990,1757544944468,-480.0,0.00013698,2]
[384792991,1757544944478,-480.0,0.00013698,2]
[384792992,1757544944487,-480.0,0.00013698,2]
[384792993,1757544944496,-151.0,0.00013698,2]
[384792994,1757544944505,-151.0,0.00013698,2]
[384792995,1757544944514,-151.0,0.00013698,2]
[384792996,1757544944524,-151.0,0.00013698,2]
[384792997,1757544944533,-151.0,0.00013698,2]
[384792998,1757544944542,-151.0,0.00013698,2]
[384792999,1757544944551,-151.0,0.00013698,2]
[384793000,1757544944561,-115.80255325,0.00013698,2]
[384793002,1757544970660,-234.82374601,0.00013583,2]
[384793003,1757544970692,-500.0,0.00013583,2]
[384793004,1757544970724,-505.95669744,0.00013583,2]
[384793005,1757544970753,-160.26483112,0.00013583,2]
[384793006,1757544970782,-170.0,0.00013583,2]
[384793007,1757544970815,-500.0,0.00013583,2]
[384793008,1757544970846,-500.0,0.00013583,2]
[384793009,1757544970878,-500.0,0.00013583,2]
[384793010,1757544970908,-500.0,0.00013583,2]
[384793011,1757544970938,-500.0,0.00013583,2]
[384793012,1757544970971,-500.0,0.00013583,2]
[384793013,1757544971002,-403.12237121,0.00013583,2]
[384793014,1757544971058,-51.67470844,0.00013583,2]
[384793015,1757544971088,-500.0,0.00013583,2]
[384793016,1757544971119,-500.0,0.00013583,2]
[384793017,1757544971148,-500.0,0.00013583,2]
[384793018,1757544971179,-500.0,0.00013583,2]
[384793019,1757544971209,-500.0,0.00013583,2]
[384793020,1757544971240,-500.0,0.00013583,2]
[384793021,1757544971269,-500.0,0.00013583,2]
[384793022,1757544971297,-500.0,0.00013583,2]
[384793023,1757544971326,-500.0,0.00013583,2]
[384793024,1757544971354,-333.87168901,0.00013583,2]
[384793025,1757544971454,-500.0,0.00013583,2]
[384793026,1757544971487,-385.01146254,0.00013583,2]
[384793027,1757544971518,-500.0,0.00013583,2]
[384793028,1757544971551,-500.0,0.00013583,2]
[384793029,1757544971584,-500.0,0.00013583,2]
[384793030,1757544971616,-500.0,0.00013583,2]
[384793031,1757544971651,-500.0,0.00013583,2]
[384793032,1757544971684,-500.0,0.00013583,2]
[384793033,1757544971717,-205.95341352,0.00013583,2]
[384793034,1757544971747,-300.0,0.00013672,2]
[384793035,1757544971778,-500.0,0.00013673,2]
[384793036,1757544971810,-67.08024788,0.00013673,2]
[384793037,1757544971922,-83.91975212,0.00013673,2]
[384793038,1757544971954,-574.803408,0.00013673,2]
[384793039,1757544971985,-574.803408,0.00013673,2]
[384793040,1757544972015,-574.803408,0.00013673,2]
[384793041,1757544972046,-574.803408,0.00013673,2]
[384793042,1757544972076,-35.19744675,0.00013698,2]
[384793043,1757544972105,-151.0,0.00013698,2]
[384793044,1757544972135,-151.0,0.00013698,2]
[384793045,1757544972164,-151.0,0.00013698,2]
[384793046,1757544972193,-151.0,0.00013698,2]
[384793047,1757544972222,-285.064721,0.00013698,2]
[384793048,1757544972251,-410.9844104,0.00013698,2]
[384793049,1757544972282,-480.0,0.00013698,2]
[384793050,1757544972312,-203.469089,0.00013698,2]
[384793051,1757544972343,-203.469089,0.00013698,2]
[384793052,1757544972378,-203.469089,0.00013698,2]
[384793053,1757544972409,-178.96645246,0.00013698,2]
[384793054,1757544972646,-24.50263654,0.00013698,2]
[384793055,1757544972677,-203.469089,0.00013698,2]
[384793056,1757544972707,-203.469089,0.00013698,2]
[384793057,1757544972849,-203.469089,0.00013698,2]
[384793058,1757544972883,-203.469089,0.00013698,2]
[384793059,1757544972914,-203.469089,0.00013698,2]
[384793060,1757544972943,-203.469089,0.00013698,2]
[384793061,1757544972974,-203.469089,0.00013698,2]
[384793062,1757544973004,-203.469089,0.00013698,2]
[384793063,1757544973034,-203.469089,0.00013698,2]
[384793064,1757544973063,-480.0,0.00013698,2]
[384793065,1757544973093,-203.469089,0.00013698,2]
[384793066,1757544973123,-203.469089,0.00013698,2]
[384793067,1757544973151,-203.469089,0.00013698,2]
[384793068,1757544973181,-203.469089,0.00013698,2]
[384793069,1757544973210,-203.469089,0.00013698,2]
[384793070,1757544973239,-203.469089,0.00013698,2]
[384793071,1757544973268,-203.46909216,0.00013698,2]
[384793072,1757544973296,-480.0,0.00013698,2]
[384793073,1757544973325,-480.0,0.00013698,2]
[384793074,1757544973353,-151.0,0.00013698,2]
[384793075,1757544973381,-106.9938726,0.00013698,2]
[384793076,1757544973560,-44.0061274,0.00013698,2]
[384793077,1757544973588,-151.0,0.00013698,2]
[384793078,1757544973618,-151.0,0.00013698,2]
[384793079,1757544973646,-151.0,0.00013698,2]
[384793080,1757544973675,-151.0,0.00013698,2]
[384793081,1757544973703,-151.0,0.00013698,2]
[384793082,1757544973740,-151.0,0.00013698,2]
[384793083,1757544973770,-151.0,0.00013698,2]
[384793084,1757544973800,-151.0,0.00013698,2]
[384793085,1757544973830,-211.4,0.00013698,2]
[384793086,1757544973859,-480.0,0.00013698,2]
[384793087,1757544973887,-425.6348085,0.00013698,2]
[384793088,1757544973923,-480.0,0.00013698,2]
[384793089,1757544973960,-480.0,0.00013698,2]
[384793090,1757544973995,-480.0,0.00013698,2]
[384793091,1757544974031,-480.0,0.00013698,2]
[384793092,1757544974067,-480.0,0.00013698,2]
[384793093,1757544974102,-151.0,0.00013698,2]
[384793094,1757544974137,-8.9281282,0.00013698,2]
[384793095,1757544974368,-142.0718718,0.00013698,2]
[384793096,1757544974406,-480.0,0.00013698,2]
[384793097,1757544974439,-151.0,0.00013698,2]
[384793098,1757544974473,-151.0,0.00013698,2]
[384793099,1757544974505,-151.0,0.00013698,2]
[384793100,1757544974538,-151.0,0.00013698,2]
[384793101,1757544974572,-151.0,0.00013698,2]
[384793102,1757544974606,-151.0,0.00013698,2]
[384793103,1757544974640,-151.0,0.00013698,2]
[384793104,1757544974674,-151.0,0.00013698,2]
[384793105,1757544974708,-151.0,0.00013698,2]
[384793106,1757544974744,-151.0,0.00013698,2]
[384793107,1757544974779,-151.0,0.00013698,2]
[384793108,1757544974813,-151.0,0.00013698,2]
[384793109,1757544974846,-151.0,0.00013698,2]
[384793110,1757544974880,-151.0,0.00013698,2]
[384793111,1757544974913,-152.459495,0.00013698,2]
[384793112,1757544974946,-151.0,0.00013698,2]
[384793113,1757544974978,-151.0,0.00013698,2]
[384793114,1757544975011,-151.0,0.00013698,2]
[384793115,1757544975044,-151.0,0.00013698,2]
[384793116,1757544975076,-151.0,0.00013698,2]
[384793117,1757544975242,-151.0,0.00013698,2]
[384793118,1757544975272,-151.0,0.00013698,2]
[384793119,1757544975303,-151.0,0.00013698,2]
[384793120,1757544975333,-151.0,0.00013698,2]
[384793121,1757544975362,-151.0,0.00013698,2]
[384793122,1757544975390,-151.0,0.00013698,2]
[384793123,1757544975418,-151.0,0.00013698,2]
[384793124,1757544975446,-151.0,0.00013698,2]
[384793125,1757544975473,-145.9472664,0.00013698,2]
[384793126,1757544975734,-5.0527336,0.00013698,2]
[384793127,1757544975763,-277.454384,0.00013698,2]
[384793128,1757544975792,-480.0,0.00013698,2]
[384793129,1757544975823,-480.0,0.00013698,2]
[384793130,1757544975852,-1000.0,0.00013698,2]
[384793131,1757544975882,-460.0,0.00013698,2]
[384793132,1757544975911,-500.0,0.00013698,2]
[384793133,1757544975941,-237.36487216,0.00013698,2]
[384793134,1757544975969,-563.70079192,0.00013698,2]
[384793135,1757544975999,-151.0,0.00013698,2]
[384793136,1757544976028,-151.0,0.00013698,2]
[384793137,1757544976058,-151.0,0.00013698,2]
[384793138,1757544976087,-151.0,0.00013698,2]
[384793139,1757544976117,-151.0,0.00013698,2]
[384793140,1757544976145,-226.96259164,0.00013698,2]
[384793141,1757544976320,-28.93925336,0.00013698,2]
[384793142,1757544976350,-480.0,0.00013698,2]
[384793143,1757544976380,-480.0,0.00013698,2]
[384793144,1757544976410,-151.0,0.00013698,2]
[384793145,1757544976439,-151.0,0.00013698,2]
[384793146,1757544976468,-151.0,0.00013698,2]
[384793147,1757544976498,-151.0,0.00013698,2]
[384793148,1757544976527,-151.0,0.00013698,2]
[384793149,1757544976556,-151.0,0.00013698,2]
[384793150,1757544976585,-151.0,0.00013698,2]
[384793151,1757544976615,-212.076114,0.00013698,2]
[384793152,1757544976645,-480.0,0.00013698,2]
[384793153,1757544976674,-151.0,0.00013698,2]
[384793154,1757544976703,-151.0,0.00013698,2]
[384793155,1757544976736,-243.393086,0.00013698,2]
[384793156,1757544976768,-480.0,0.00013698,2]
[384793157,1757544976799,-500.0,0.00013698,2]
[384793158,1757544976830,-500.0,0.00013698,2]
[384793159,1757544977420,-480.0,0.00013698,2]
[384793160,1757544977450,-480.0,0.00013698,2]
[384793161,1757544977479,-480.0,0.00013698,2]
[384793162,1757544977509,-480.0,0.00013698,2]
[384793163,1757544977539,-480.0,0.00013698,2]
[384793164,1757544977569,-480.0,0.00013698,2]
[384793165,1757544977599,-480.0,0.00013698,2]
[384793166,1757544977628,-480.0,0.00013698,2]
[384793167,1757544977658,-480.0,0.00013698,2]
[384793168,1757544977687,-480.0,0.00013698,2]
[384793169,1757544981554,-364.0126906,0.00013698,2]
[384793170,1757544981569,-115.9873094,0.00013698,2]
[384793171,1757544981578,-364.0126906,0.00013698,2]
[384793172,1757544981594,-115.9873094,0.00013698,2]
[384793173,1757544981603,-364.0126906,0.00013698,2]
[384793174,1757544981619,-115.9873094,0.00013698,2]
[384793175,1757544981628,-284.0226906,0.00013698,2]
[384793176,1757544982079,-171.50510231,0.00013583,2]
[384793177,1757544982111,-500.0,0.00013583,2]
[384793178,1757544982142,-500.0,0.00013583,2]
[384793179,1757544982174,-499.99999999,0.00013583,2]
[384793180,1757544982207,-500.0,0.00013583,2]
[384793181,1757544982238,-500.0,0.00013583,2]
[384793182,1757544982271,-500.0,0.00013583,2]
[384793183,1757544982305,-500.0,0.00013583,2]